[Event "13th Palmanova Festival A 2024"]
[Site "Palmanova"]
[Date "2024.12.28"]
[Round "2.12"]
[White "Di Benedetto, Edoardo"]
[Black "Zoncu, Roberto Alessio"]
[Result "1-0"]
[ECO "D05"]
[WhiteElo "2411"]
[BlackElo "2165"]
[Annotator "TA"]
[PlyCount "105"]
[EventDate "2024.12.27"]
[EventCountry "ITA"]
[SourceTitle "playchess.com"]
[Source "ChessBase"]
[SourceQuality "1"]
[TimeControl "6000+30"]

{[%evp 18,105,0,0,0,0,0,-1,-6,-7,20,-24,53,51,47,56,56,52,49,40,43,44,79,58,80,82,199,122,123,123,101,83,100,100,137,129,198,206,205,213,276,201,208,210,207,201,202,204,300,293,281,206,306,286,289,296,356,345,336,0,365,362,410,395,537,517,526,513,543,541,597,491,619,638,623,597,583,612,591,490,490,490,476,417,475,466,599,582,561,526]} 1. Nf3 {[%emt 0:04:10]} Nf6 {[%emt 0:00:14]} 2. e3 {[%emt 0:00:10]} e6 {[%emt 0:01:33]} 3. d4 {[%emt 0:01:38]} b6 {[%emt 0:02:17]} 4. Bd3 {[%emt 0:00:20]} Bb7 {[%emt 0:02:53]} 5. Nbd2 {[%emt 0:01:28]} c5 {[%emt 0:04:15]} 6. O-O {[%emt 0:01:32]} Be7 {[%emt 0:00:35]} 7. b3 {[%emt 0:00:19]} O-O {[%emt 0:00:40]} 8. Bb2 {[%emt 0:00:40]} d5 {[%emt 0:07:24]} 9. Ne5 {[%emt 0:02:03]} Nbd7 {[%emt 0:01:25][%cal Bb8d7,Bd7f6,Bf6d5][%mdl 32]} 10. f4 {[%emt 0:01:41]} cxd4 {[%emt 0:11:54]} 11. exd4 {[%emt 0:00:35]} Ne4 {[%emt 0:00:44]} 12. Nxe4 {[%emt 0:05:44]} dxe4 {[%emt 0:00:13]} 13. Bc4 {[%emt 0:09:34]} Nf6 {[%emt 0:07:32]} 14. Qe2 {[%emt 0:10:26]} Rc8 {[%emt 0:11:57]} (14... a6 $11 15. a4 Ne8) 15. f5 $14 {[%emt 0:08:16]} exf5 {[%emt 0:10:24]} 16. Rxf5 {[%emt 0:00:29]} Ba3 {[%emt 0:13:28]} 17. c3 {[%emt 0:00:34]} Bxb2 {[%emt 0:03:33]} 18. Qxb2 {[%emt 0:00:09]} Nd5 {[%emt 0:00:48][%cal Ob6b5]} 19. Raf1 {[%emt 0:03:33][%cal Re5f7]} Rc7 {[%emt 0:09:23][%cal Ob6b5]} 20. Ng4 {[%emt 0:19:19]} Qh4 {[%emt 0:07:33]} 21. h3 {[%emt 0:05:38]} Rd7 {[%emt 0:07:39]} (21... h5 $16) 22. Bxd5 {[%emt 0:01:55]} (22. Qd2 $18) 22... Rxd5 $16 {[%emt 0:00:24] [#]} 23. R5f4 $1 {[%emt 0:01:32]} Qe7 {[%emt 0:00:30]} 24. c4 {[%emt 0:01:24]} Rg5 {[%emt 0:01:41]} 25. d5 {[%emt 0:00:47]} Bc8 {[%emt 0:01:10]} 26. Qd4 {[%emt 0:00:49] White is more active.} h5 {[%emt 0:02:01]} (26... Qa3 $16) 27. Rxe4 $18 {[%emt 0:00:55]} (27. Qxe4 $2 {too greedy.} Qxe4 28. Rxe4 hxg4 $19) 27... Qd6 {[%emt 0:00:17]} 28. Re5 {[%emt 0:00:30]} Qg6 {[%emt 0:00:56]} 29. Rxg5 $40 {[%emt 0:00:29][%mdl 128] Black is in trouble.} Qxg5 {[%emt 0:00:14]} 30. Qe3 {[%emt 0:00:26]} Qxe3+ {[%emt 0:01:09]} 31. Nxe3 {[%emt 0:00:02][%mdl 4096] Endgame KRB-KRN. White is a pawn up.} Re8 {[%emt 0:00:09]} 32. Kf2 {[%emt 0:00:44]} f5 {[%emt 0:00:46]} (32... g5 $142 33. c5 bxc5) 33. Nc2 {[%emt 0:02:46]} Kf7 {[%emt 0:00:33]} 34. Nd4 {[%emt 0:00:52]} Bd7 {[%emt 0:00:17]} (34... g5 {is a better defense.} 35. Nb5 Kg6) 35. Nf3 {[%emt 0:00:48]} Kf6 {[%emt 0:00:35]} 36. h4 {[%emt 0:00:03]} Rc8 {[%emt 0:00:22]} 37. Ke3 {[%emt 0:00:25]} Re8+ {[%emt 0:00:48]} 38. Kf2 {[%emt 0:01:53]} Rc8 $1 {[%emt 0:00:17]} 39. Re1 {[%emt 0:00:21]} a5 {[%emt 0:00:53]} 40. Ke3 {[%emt 0:00:09]} a4 {[%emt 0:00:29]} 41. Kd4 {[%emt 0:00:18]} axb3 {[%emt 0:00:00]} 42. axb3 {[%emt 0:00:00]} Ra8 {[%emt 0:00:00]} 43. b4 {[%emt 0:00:00]} Ra4 {[%emt 0:00:00]} 44. Kc3 {[%emt 0:00:00]} f4 {[%emt 0:00:00]} 45. Kb3 {[%emt 0:00:00] Prevents Ra3+.} Ra7 {[%emt 0:00:00]} 46. c5 {[%emt 0:00:00]} bxc5 {[%emt 0:00:00]} 47. bxc5 {[%emt 0:00:00]} Ra5 {[%emt 0:00:00]} 48. c6 {[%emt 0:00:00]} Rxd5 {[%emt 0:00:00]} 49. cxd7 {[%emt 0:00:00]} Rxd7 {[%emt 0:00:00]} 50. Re4 {[%emt 0:00:00]} Kf5 {[%emt 0:00:00]} 51. Re5+ {[%emt 0:00:00]} Kf6 {[%emt 0:00:00]} 52. Rxh5 {[%emt 0:00:00]} Re7 {[%emt 0:00:00]} 53. Kc3 {[%emt 0:00:00]} 1-0

[Event "13th Palmanova Festival A 2024"]
[Site "Palmanova"]
[Date "2024.12.28"]
[Round "2.13"]
[White "Belli, Giorgio"]
[Black "Marn, Jan"]
[Result "1/2-1/2"]
[ECO "C95"]
[WhiteElo "2205"]
[BlackElo "2400"]
[Annotator "TA"]
[PlyCount "97"]
[EventDate "2024.12.27"]
[EventCountry "ITA"]
[SourceTitle "playchess.com"]
[Source "ChessBase"]
[SourceQuality "1"]
[TimeControl "6000+30"]

{[%evp 31,97,23,19,13,26,12,18,25,26,12,12,-6,18,26,20,13,12,0,22,8,63,-96,-92,-134,-88,-76,0,15,2,6,2,5,3,8,92,90,87,87,70,56,119,93,131,125,137,135,135,64,114,0,0,0,0,0,0,0,0,0,0,0,0,0,0,0,0,0,0,0]} 1. e4 {[%emt 0:05:13]} e5 {[%emt 0:03:05]} 2. Nf3 {[%emt 0:00:10]} Nc6 {[%emt 0:00:07]} 3. Bb5 {[%emt 0:00:35][%cal Bf1b5,Bb5a4,Ba4b3][%mdl 32]} a6 {[%emt 0:00:08]} 4. Ba4 {[%emt 0:00:30]} Nf6 {[%emt 0:00:27]} 5. O-O {[%emt 0:00:12]} Be7 {[%emt 0:00:04]} 6. Re1 {[%emt 0:00:19]} b5 {[%emt 0:00:06]} 7. Bb3 {[%emt 0:00:08]} d6 {[%emt 0:00:07]} 8. c3 {[%emt 0:00:10]} O-O {[%emt 0:00:07]} 9. h3 {[%emt 0:00:06]} Nb8 {[%emt 0:00:11]} 10. d4 {[%emt 0:00:15]} Nbd7 {[%emt 0:00:05]} 11. a4 {[%emt 0:00:48]} Bb7 {[%emt 0:01:02]} 12. Nbd2 {[%emt 0:00:10]} c5 {[%emt 0:05:42]} 13. d5 {[%emt 0:04:49]} c4 {[%emt 0:03:22]} 14. Bc2 {[%emt 0:00:15]} Re8 {[%emt 0:00:05]} 15. Nf1 {[%emt 0:05:50]} Bf8 {[%emt 0:00:29]} 16. Ng3 {[%emt 0:01:59]} g6 {[%emt 0:00:09]} 17. Nh2 {[%emt 0:01:24]} Nc5 {[%emt 0:26:37]} 18. Bg5 {[%emt 0:09:03] next Ng4 is good for White.} h6 {[%emt 0:02:08][%cal Bh7h6,Bh6h5,Bh5h4][%mdl 32]} 19. Be3 {[%emt 0:01:30]} h5 {[%emt 0:01:19]} 20. Bg5 {[%emt 0:03:18]} Be7 {[%emt 0:00:11][%cal Of6d5]} 21. f4 {[%emt 0:11:34]} h4 {[%emt 0:08:38]} 22. Ngf1 {[%emt 0:00:48]} Nh5 {[%emt 0:01:44]} 23. Bxe7 Qxe7 {[%emt 0:00:03]} 24. f5 {[%emt 0:02:09]} Qg5 {[%emt 0:03:45]} 25. Nf3 {[%emt 0:03:08]} Qf4 {[%emt 0:02:10]} (25... Qf6 $11) 26. N1h2 $2 {[%emt 0:06:44]} (26. fxg6 $1 $14 fxg6 27. Qd2) 26... gxf5 $17 27. exf5 {[%emt 0:00:46][%cal Of3e5] [#]} e4 {[%emt 0:12:16]} (27... Nf6 $1 28. Re2 Red8 (28... Bxd5 29. Ng4 $17)) 28. Nd4 {[%emt 0:00:15][%csl LRb5,LRh5]} Ng3 {[%emt 0:00:06]} (28... Nf6 $17 {...Nd3 is the strong threat.} 29. Ng4 Nxg4 (29... Nxd5 30. Rf1 $11) 30. Qxg4+ Qxg4 31. hxg4 Bxd5) 29. Qg4+ $11 {[%emt 0:01:40]} Qxg4 {[%emt 0:00:06]} 30. Nxg4 {[%emt 0:00:04]} Kg7 {[%emt 0:00:27] Wards off Nf6} 31. Ne3 {[%emt 0:09:53]} Nd3 {[%emt 0:03:32]} 32. Reb1 {[%emt 0:00:14]} Rab8 {[%emt 0:27:45]} (32... b4 $11 {keeps the balance.} 33. Nxc4 Re5 (33... Bxd5 34. Nb6 $11)) 33. axb5 $16 {[%emt 0:03:32]} axb5 {[%emt 0:00:01]} 34. Nxb5 {[%emt 0:03:53][%cal Oa1a5]} Red8 {[%emt 0:00:20]} 35. Nd4 {[%emt 0:02:34][%cal Oc2a4] Repels Ne2+} Ne5 {[%emt 0:00:08]} ({Black should try} 35... Nf4 $14) 36. b4 {[%emt 0:01:03]} cxb3 {[%emt 0:02:03]} 37. Rxb3 {[%emt 0:00:44] aiming for Rab1.} (37. Bxb3 $6 Rdc8 $11) 37... Ba8 {[%emt 0:00:45]} 38. Rxb8 {[%emt 0:02:32]} Rxb8 {[%emt 0:00:07]} 39. Ra6 {[%emt 0:00:16]} (39. Kf2 $16) 39... Rc8 {[%emt 0:03:42]} (39... Kf6 $14) 40. Nb5 {[%emt 0:03:07]} (40. Rxd6 Rxc3 41. Ng4 (41. f6+ $2 Kg6 $17) 41... Nxg4 42. hxg4 Rc4 $15) ({Better is} 40. Kf2 $16) 40... Rc5 $1 $11 {[%emt 0:00:31][%csl LRb5,LRd5]} 41. Nxd6 {[%emt 0:01:41]} Rxc3 {[%emt 0:06:12]} 42. f6+ {[%emt 0:12:01]} (42. Nxe4 Rxe3 (42... Nxe4 43. f6+ Nxf6 44. Nf5+ Kg6 45. Nd4+ Rxc2 46. Nxc2 $17) 43. f6+ (43. Nxg3 $2 hxg3 44. f6+ Kh6 $19) 43... Kh6 44. Rxa8 Nxe4 45. Bxe4 Rxe4 $19) 42... Kh6 $1 {[%emt 0:00:00]} 43. Nef5+ {[%emt 0:00:00]} (43. Nxe4 $2 {too greedy.} Rxe3 (43... Nxe4 44. Nf5+ Kg5 45. Bxe4 $11) 44. Rxa8 Nxe4 45. Rh8+ Kg5 46. Bxe4 Rxe4 $19) 43... Nxf5 $1 {[%emt 0:00:00]} 44. Nxf5+ {[%emt 0:00:00]} Kg5 {[%emt 0:00:00]} 45. Bxe4 {[%emt 0:00:00]} Bxd5 {[%emt 0:00:00]} 46. Bxd5 {[%emt 0:00:00]} Kxf5 {[%emt 0:00:00]} 47. Ra4 {[%emt 0:00:00]} Rc5 {[%emt 0:00:00]} 48. Ba2 {[%emt 0:00:00]} Kg5 {[%emt 0:00:00]} 49. Kh2 {[%emt 0:19:38]} 1/2-1/2

[Event "13th Palmanova Festival A 2024"]
[Site "Palmanova"]
[Date "2024.12.28"]
[Round "2.14"]
[White "Mazzini, Mauro"]
[Black "Savanovic, Aleksandar"]
[Result "0-1"]
[ECO "C56"]
[WhiteElo "2069"]
[BlackElo "2354"]
[Annotator "TA"]
[PlyCount "40"]
[EventDate "2024.12.27"]
[EventCountry "ITA"]
[SourceTitle "playchess.com"]
[Source "ChessBase"]
[SourceQuality "1"]
[TimeControl "6000+30"]

{[%evp 20,40,4,0,17,20,40,39,47,-5,-19,-12,0,-43,-64,-50,-68,-65,-54,-210,-204,-343,-351]} 1. e4 {[%emt 0:00:04]} e5 {[%emt 0:01:18]} 2. Nf3 {[%emt 0:00:48]} Nc6 {[%emt 0:00:07]} 3. d4 {[%emt 0:00:08]} exd4 {[%emt 0:00:12]} 4. Bc4 {[%emt 0:00:08]} Nf6 {[%emt 0:01:48][%cal Bg8f6,Bf6e4,Be4g5,Bg5e6][%mdl 32]} 5. e5 {[%emt 0:00:11]} d5 {[%emt 0:00:23]} 6. Bb5 {[%emt 0:00:07]} Ne4 {[%emt 0:00:50]} 7. Nxd4 {[%emt 0:00:18]} Bd7 {[%emt 0:00:13]} 8. Bxc6 {[%emt 0:00:08]} bxc6 {[%emt 0:00:05]} 9. O-O {[%emt 0:00:16]} Bc5 {[%emt 0:00:08]} 10. f3 {[%emt 0:00:19]} Ng5 {[%emt 0:00:09]} 11. f4 {[%emt 0:01:04]} Ne6 {[%emt 0:00:29]} 12. c3 {[%emt 0:02:29]} f5 {[%emt 0:01:36]} 13. Be3 {[%emt 0:01:44]} O-O {[%emt 0:00:19]} 14. b4 {[%emt 0:04:34]} (14. Nd2 $14) 14... Bxd4 $11 {[%emt 0:09:40]} 15. Bxd4 {[%emt 0:06:00]} Qe7 {[%emt 0:03:25]} 16. Be3 {[%emt 0:03:55]} a5 {[%emt 0:05:15]} 17. a3 {[%emt 0:08:38]} axb4 {[%emt 0:08:05]} 18. cxb4 {[%emt 0:00:11]} c5 {[%emt 0:00:22]} 19. bxc5 $2 {[%emt 0:04:21] [#]} (19. Bxc5 $15 Nxc5 20. Qxd5+ Ne6 21. Nc3) 19... d4 $1 $19 {[%emt 0:01:44]} 20. Bxd4 {[%emt 0:04:27]} (20. Bd2 {is a better defense.} Bc6 (20... Qxc5 21. Bb4 $14) 21. Bb4) 20... Ba4 $1 {[%emt 0:00:32]} ({Weaker is} 20... Nxc5 21. Be3 $16) 0-1